bitfinex-derivatives/quotes_SOLF0:USTF0_20260107
["timestamp","ask_amount","ask_price","bid_price","bid_amount"]
[1767749023302,1.63620794,139.8,139.71,7.03452242]
[1767749023795,8.07790794,139.8,139.72,7.03382242]
[1767749023995,6.4417,139.8,139.72,7.03382242]
[1767749025302,1.63620794,139.79,139.72,7.03382242]
[1767749025800,1.63620794,139.79,139.73,7.03342242]
[1767749026013,84.58,139.81,139.73,7.03342242]
[1767749026194,86.21620794,139.81,139.73,7.03342242]
[1767749026904,92.65710794,139.81,139.73,7.03342242]
[1767749028704,84.58,139.81,139.75,0.58912242]
[1767749031606,6.4404,139.82,139.75,7.03262242]
[1767749032108,1.63620794,139.83,139.76,0.58912242]
[1767749033201,1.63620794,139.83,139.74,7.03282242]
[1767749034499,6.4404,139.82,139.75,6.4435]
[1767749034693,6.4404,139.82,139.75,7.03262242]
[1767749035211,1.63620794,139.83,139.75,7.03262242]
[1767749036004,84.56,139.85,139.73,7.03322242]
[1767749036212,1.63620794,139.81,139.73,7.03322242]
[1767749036806,1.63620794,139.81,139.73,0.58912242]
[1767749037013,1.63620794,139.79,139.71,7.03412242]
[1767749037201,100.1734,139.84,139.71,0.58912242]
[1767749037408,1.63620794,139.8,139.71,0.58912242]
[1767749038712,8.07760794,139.8,139.72,6.9965045]
[1767749039517,1.63620794,139.78,139.7,6.9971045]
[1767749039907,1.63620794,139.79,139.7,0.5516045]
[1767749041519,8.07810794,139.79,139.72,6.4448]
[1767749042218,8.07810794,139.79,139.7,6.9972045]
[1767749042409,8.07810794,139.79,139.71,0.54936065]
[1767749043214,1.63620794,139.77,139.71,0.54936065]
[1767749043515,1.63620794,139.77,139.69,6.4459]
[1767749043925,8.07890794,139.77,139.69,6.99526065]
[1767749044418,1.63620794,139.77,139.69,6.99526065]
[1767749044714,100.2019,139.8,139.69,0.54936065]
[1767749044715,1.63620794,139.75,139.69,0.54936065]
[1767749045706,8.07990794,139.75,139.69,0.54936065]
[1767749046316,8.07990794,139.75,139.66,6.99676065]
[1767749046516,1.63620794,139.73,139.66,6.99676065]
[1767749048514,6.4447,139.73,139.66,6.99676065]
[1767749048709,8.08090794,139.73,139.66,6.99676065]
[1767749052420,6.4447,139.73,139.66,6.99676065]
[1767749053222,1.63620794,139.74,139.66,6.99676065]
[1767749053517,86.19620794,139.76,139.68,0.54936065]
[1767749054414,6.4436,139.75,139.68,6.99606065]
[1767749055423,6.4436,139.75,139.69,6.4463]
[1767749056823,91.0033,139.76,139.7,6.4458]
[1767749057121,92.63950794,139.76,139.7,6.4458]
[1767749057621,86.19620794,139.76,139.7,6.4458]
[1767749058018,84.56,139.76,139.71,6.99476065]
[1767749058221,6.442,139.79,139.71,0.54936065]
[1767749058613,86.21620794,139.8,139.73,6.4445]
[1767749058815,84.58,139.8,139.73,6.4445]
[1767749059015,84.58,139.8,139.71,0.54936065]
[1767749059220,1.63620794,139.79,139.71,0.54936065]
[1767749060914,6.4427,139.77,139.71,0.54936065]
[1767749061116,1.63620794,139.75,139.66,0.54936065]
[1767749061828,1.63620794,139.73,139.66,0.54936065]
[1767749062825,1.63620794,139.73,139.63,0.54936065]
[1767749063323,6.4451,139.72,139.64,6.4486]
[1767749063527,1.63620794,139.73,139.65,0.54936065]
[1767749064530,8.08070794,139.73,139.65,6.99746065]
[1767749064932,1.63620794,139.73,139.65,6.99746065]
[1767749066525,6.445,139.72,139.65,6.99746065]
[1767749067531,6.445,139.72,139.66,0.54936065]
[1767749067735,6.4446,139.73,139.66,0.54936065]
[1767749068235,6.445,139.72,139.66,0.54936065]
[1767749069036,6.4445,139.74,139.66,6.99706065]
[1767749069233,1.63620794,139.77,139.67,0.54936065]
[1767749069536,86.21620794,139.79,139.68,0.54936065]
[1767749070032,86.21620794,139.79,139.71,0.54936065]
[1767749070430,86.21620794,139.79,139.68,6.99586065]
[1767749070631,84.58,139.79,139.69,0.54936065]
[1767749071636,6.4433,139.76,139.69,0.54936065]
[1767749074545,6.4437,139.75,139.69,0.54936065]
[1767749075346,6.4431,139.77,139.7,0.50763435]
[1767749075944,84.58,139.79,139.7,0.50763435]
[1767749076543,6.4422,139.78,139.71,6.95293435]
[1767749076739,84.58,139.79,139.71,0.50763435]
[1767749077251,6.4417,139.8,139.73,6.95203435]
[1767749078954,93.57644228,139.82,139.73,6.95203435]
[1767749079257,93.57644228,139.82,139.71,6.4451]
[1767749079258,87.13574228,139.82,139.71,6.4451]
[1767749080649,6.4418,139.79,139.71,6.4451]
[1767749080842,2.55574228,139.79,139.69,6.446]
[1767749081248,84.56,139.78,139.67,0.50763435]
[1767749082654,6.4436,139.75,139.68,6.4466]
[1767749082849,6.4436,139.75,139.67,0.50763435]
[1767749087960,6.443,139.77,139.68,0.50763435]
[1767749089359,84.58,139.78,139.68,0.50763435]
[1767749090554,84.58,139.78,139.66,13.57688572]
[1767749090555,100.2274,139.76,139.66,13.57688572]
[1767749090756,100.2274,139.76,139.66,0.50763435]
[1767749090958,184.8074,139.76,139.66,0.50763435]
[1767749091664,6.4445,139.73,139.66,0.50763435]
[1767749094066,6.4445,139.73,139.66,6.95533435]
[1767749096061,6.4439,139.75,139.66,6.95533435]
[1767749096267,84.58,139.76,139.66,6.95533435]
[1767749096666,6.4441,139.74,139.67,6.4472]
[1767749097769,91.0235,139.76,139.67,6.9641983]
[1767749098263,91.0235,139.76,139.69,0.5169983]
[1767749098468,6.4436,139.75,139.68,6.4467]
[1767749101868,84.58,139.77,139.67,0.5169983]
[1767749102066,6.4441,139.74,139.67,0.5169983]
[1767749102671,6.4436,139.75,139.67,6.9641983]
[1767749103672,6.444,139.74,139.67,6.9641983]
[1767749104572,6.444,139.74,139.67,15.88151301]
[1767749105171,6.4436,139.75,139.68,6.91755076]
[1767749105471,102.74204228,139.82,139.7,9.38806547]
[1767749105675,84.58,139.81,139.71,0.47075076]
[1767749106576,100.1579,139.86,139.73,0.47075076]
[1767749106770,2.55574228,139.87,139.75,0.47075076]
[1767749106968,84.58,139.86,139.75,0.47075076]
[1767749107281,84.58,139.86,139.77,0.47075076]
[1767749108778,100.1213,139.91,139.79,0.47075076]
[1767749108975,84.58,139.9,139.79,0.47075076]
[1767749110676,6.4379,139.88,139.79,6.91235076]
[1767749110872,84.58,139.9,139.8,0.47075076]
[1767749111177,6.4373,139.89,139.81,6.91145076]
[1767749111569,84.58,139.9,139.78,184.7888]
[1767749111570,84.58,139.9,139.82,0.47075076]
[1767749111869,6.4368,139.9,139.82,0.47075076]
[1767749112470,2.55574228,139.9,139.79,0.47075076]
[1767749112781,84.56,139.89,139.79,0.47075076]
[1767749113575,6.4377,139.88,139.79,6.91215076]
[1767749114078,6.4377,139.88,139.79,0.47075076]
[1767749114675,84.56,139.89,139.8,6.91185076]
[1767749114874,84.56,139.89,139.81,0.47075076]
[1767749115775,84.56,139.89,139.81,6.91125076]
[1767749115977,84.56,139.89,139.81,0.47075076]
[1767749116178,84.56,139.89,139.78,0.47075076]
[1767749116578,90.9974,139.89,139.81,0.47075076]
[1767749116780,87.09574228,139.92,139.81,0.47075076]
[1767749117284,84.54,139.91,139.81,0.47075076]
[1767749117983,6.4367,139.9,139.81,0.47075076]
[1767749118477,84.54,139.91,139.81,0.47075076]
[1767749119281,6.437,139.9,139.81,0.47075076]
[1767749119479,84.54,139.91,139.81,0.47075076]
[1767749120288,84.54,139.91,139.83,6.4397]
[1767749121177,90.9763,139.91,139.82,0.47075076]
[1767749122289,84.54,139.91,139.83,0.47075076]
[1767749122986,84.54,139.91,139.84,6.4394]
[1767749125080,90.9763,139.91,139.84,6.4394]
[1767749125280,84.54,139.91,139.84,6.4394]
[1767749125481,84.54,139.91,139.85,6.4389]
[1767749125677,2.55574228,139.93,139.85,0.47075076]
[1767749125987,84.52,139.94,139.85,0.47075076]
[1767749126686,90.9549,139.94,139.86,6.4384]
[1767749126890,84.52,139.94,139.86,6.4384]
[1767749127484,2.55574228,139.96,139.87,0.47075076]
[1767749128091,6.434,139.96,139.88,6.90815076]
[1767749128282,87.05574228,139.98,139.88,0.47075076]
[1767749128586,6.4339,139.96,139.88,6.90815076]
[1767749129191,6.4339,139.96,139.89,6.4371]
[1767749129694,87.05574228,139.98,139.89,6.4371]
[1767749129996,2.55574228,139.98,139.9,6.90725076]
[1767749130291,90.9328,139.99,139.9,0.47075076]
[1767749130490,1.63082483,139.98,139.9,0.47075076]
[1767749131281,1.63082483,139.98,139.91,6.4361]
[1767749131681,84.5,139.99,139.9,0.47075076]
[1767749132895,1.63082483,139.98,139.9,0.47075076]
[1767749133281,8.06392483,139.98,139.9,0.47075076]
[1767749133486,1.63082483,139.98,139.88,0.46621709]
[1767749133685,1.63082483,139.99,139.9,0.46621709]
[1767749133892,135.77704428,140.03,139.94,6.90081709]
[1767749133893,106.75765899,140.03,139.94,6.90081709]
[1767749134289,22.27765899,140.03,139.94,6.90081709]
[1767749135188,20.64683416,140.03,139.94,6.90081709]
[1767749135382,20.64683416,140.03,139.95,6.90051709]
[1767749135586,20.64683416,140.03,139.95,0.46621709]
[1767749135786,1.63082483,140.02,139.95,0.46621709]
[1767749137493,1.63082483,140.02,139.95,6.90041709]
[1767749137896,14.21583416,140.03,139.95,6.90041709]
[1767749138091,1.63082483,140.02,139.95,6.90041709]
[1767749139795,1.63082483,140.02,139.96,6.89991709]
[1767749139997,15.84665899,140.03,139.96,6.89991709]
[1767749141199,14.21583416,140.03,139.96,6.89991709]
[1767749141400,1.63082483,140.02,139.96,6.89991709]
[1767749142700,14.21583416,140.03,139.97,0.46621709]
[1767749143295,14.21583416,140.03,139.97,6.89961709]
[1767749144000,6.4292,140.07,139.99,0.46621709]
[1767749144390,1.63082483,140.06,139.99,0.46621709]
[1767749144796,6.4294,140.06,139.99,6.89871709]
[1767749144996,8.06022483,140.06,139.99,6.89871709]
[1767749145205,6.4288,140.08,139.99,6.89871709]
[1767749145402,1.63082483,140.06,139.99,6.89871709]
[1767749146609,1.63082483,140.07,140.0,0.46621709]
[1767749146906,1.63082483,140.03,139.94,0.46621709]
[1767749147106,1.63082483,140.01,139.94,0.46621709]
[1767749147407,1.63082483,140.02,139.94,0.46621709]
[1767749148299,1.63082483,140.0,139.94,0.46621709]
[1767749149706,1.63082483,140.0,139.94,6.90091709]
[1767749152712,1.63082483,140.01,139.94,6.90091709]
[1767749153108,1.63082483,140.01,139.94,0.46621709]
[1767749153404,1.63082483,139.99,139.92,0.46621709]
[1767749153603,1.63082483,139.97,139.9,6.4364]
[1767749154498,1.63082483,139.97,139.9,6.90261709]
[1767749155007,1.63082483,139.97,139.91,6.4361]
[1767749155608,1.63082483,139.97,139.9,0.46621709]
[1767749156008,1.63082483,139.95,139.9,0.46621709]
[1767749156404,1.63082483,139.95,139.87,184.5839]
[1767749156405,1.63082483,139.95,139.87,185.05011709]
[1767749156707,1.63082483,139.95,139.9,6.4366]
[1767749157106,1.63082483,139.93,139.88,6.4374]
[1767749157405,1.63082483,139.95,139.87,0.46621709]
[1767749158111,86.05082483,139.97,139.88,0.46621709]
[1767749158712,86.05082483,139.97,139.89,6.4371]
[1767749159112,1.63082483,139.96,139.89,6.4371]
[1767749159514,1.63082483,139.96,139.9,6.4366]
[1767749160311,1.63082483,139.98,139.91,0.46621709]
[1767749160516,1.63082483,140.0,139.91,0.46621709]
[1767749161714,1.63082483,140.0,139.93,6.4352]
[1767749162415,90.8717,140.01,139.93,6.74574053]
[1767749162623,1.63082483,140.0,139.94,6.4348]
[1767749163316,1.63082483,140.0,139.95,6.4343]
[1767749163523,1.63082483,140.04,139.95,0.31054053]
[1767749163827,1.63082483,140.02,139.95,0.31054053]
[1767749164716,1.63082483,140.02,139.95,6.74444053]
[1767749165025,1.63082483,140.02,139.95,6.4339]
[1767749166118,8.06202483,140.02,139.95,6.4339]
[1767749166923,8.06202483,140.02,139.94,6.4347]
[1767749167231,8.06202483,140.02,139.94,6.73821378]
[1767749168533,8.06202483,140.02,139.95,6.4343]
[1767749168534,6.4312,140.02,139.95,6.4343]
[1767749169424,84.44,140.03,139.92,8.91731471]
[1767749169629,84.44,140.03,139.96,6.73721378]
[1767749170834,84.44,140.03,139.97,6.4332]
[1767749171633,84.44,140.03,139.95,6.434]
[1767749171634,86.07082483,140.03,139.95,6.434]
[1767749171828,86.07082483,140.03,139.94,0.30351378]
[1767749172337,86.07082483,140.03,139.94,9.22082849]
[1767749173532,6.4312,140.02,139.95,6.4343]
[1767749174038,1.63082483,140.01,139.93,8.91731471]
[1767749174235,1.63082483,140.01,139.92,8.91731471]
[1767749174435,86.05082483,140.01,139.92,8.91731471]
[1767749174740,6.4321,140.0,139.93,6.4353]
[1767749176244,1.63082483,139.97,139.92,8.91731471]
[1767749176548,1.63082483,139.97,139.88,9.22082849]
[1767749176837,1.63082483,139.95,139.89,6.4367]
[1767749177038,1.63082483,139.93,139.88,8.91731471]
[1767749177243,1.63082483,139.93,139.85,9.22082849]
[1767749178636,1.63082483,139.93,139.85,8.91731471]
[1767749178841,1.63082483,139.93,139.84,9.22082849]
[1767749180639,8.06622483,139.93,139.84,9.22082849]
[1767749181346,8.06622483,139.93,139.84,0.30351378]
[1767749181537,8.06622483,139.93,139.84,6.74281378]
[1767749182744,6.4358,139.92,139.84,6.74281378]
[1767749184741,6.4358,139.92,139.85,0.30351378]
[1767749185846,1.63082483,139.91,139.85,0.30351378]
[1767749187751,1.63082483,139.91,139.83,0.30351378]
[1767749188046,1.63082483,139.89,139.83,0.30351378]
[1767749188245,1.63082483,139.89,139.81,0.30351378]
[1767749188467,6.4378,139.88,139.81,0.30351378]
[1767749190548,84.46,139.91,139.82,0.30351378]
[1767749191549,6.4367,139.9,139.83,6.75258256]
[1767749192244,84.46,139.91,139.85,0.31288256]
[1767749193556,6.4351,139.94,139.88,0.31288256]
[1767749193849,84.48,139.98,139.88,0.31288256]
[1767749194235,6.4338,139.97,139.9,6.74938256]
[1767749194659,6.4327,139.99,139.92,0.31288256]
[1767749195653,6.4331,139.98,139.89,6.74968256]
[1767749196049,184.5397,140.0,139.89,6.74968256]
[1767749197246,6.4327,139.99,139.89,6.74968256]
[1767749197548,84.48,140.0,139.89,6.74968256]
[1767749197944,84.48,140.0,139.89,0.31288256]
[1767749199547,6.4336,139.97,139.89,0.31288256]
[1767749200457,100.0711,139.98,139.86,6.75098256]
[1767749200748,84.46,139.97,139.86,0.31288256]
[1767749200945,100.0532,140.01,139.86,0.31288256]
[1767749201150,6.4327,139.99,139.89,6.74988256]
[1767749201454,84.46,140.0,139.89,6.74988256]
[1767749201655,184.518,140.0,139.89,0.31288256]
[1767749202052,100.0625,139.99,139.87,6.4377]
[1767749202256,100.0733,139.98,139.86,0.31288256]
[1767749202558,100.0852,139.96,139.83,84.79288256]
[1767749202751,84.46,139.95,139.84,0.31288256]
[1767749203451,100.0981,139.94,139.84,0.31288256]
[1767749203752,100.1078,139.93,139.81,0.31288256]
[1767749204250,84.46,139.92,139.81,0.31288256]
[1767749204558,6.4367,139.9,139.82,6.75288256]
[1767749204858,100.0937,139.95,139.8,84.48]
[1767749204859,100.0849,139.96,139.83,0.31288256]
[1767749205058,84.46,139.95,139.83,0.31288256]
[1767749206052,6.4358,139.92,139.85,6.4388]
[1767749207361,6.4352,139.94,139.85,6.75168256]
[1767749207663,6.4352,139.94,139.86,0.31288256]
[1767749208252,6.4353,139.93,139.85,6.4388]
[1767749208969,6.4353,139.93,139.86,6.75138256]
[1767749209356,6.4346,139.95,139.87,6.75078256]
[1767749210557,84.48,139.96,139.88,6.75038256]
[1767749212663,90.9139,139.96,139.88,6.75038256]
[1767749212863,84.48,139.96,139.88,0.31288256]
[1767749214564,6.4345,139.95,139.88,0.31288256]
[1767749218263,84.48,139.96,139.89,0.31288256]
[1767749218458,84.48,139.96,139.88,6.4374]
[1767749219469,84.48,139.96,139.88,6.76512514]
[1767749219769,6.4344,139.95,139.88,6.76512514]
[1767749220471,84.48,139.96,139.88,6.76512514]
[1767749221471,84.48,139.96,139.86,0.29898414]
[1767749221767,87.02920335,139.96,139.84,13.36823551]
[1767749221960,6.4358,139.92,139.85,6.4386]
[1767749222272,84.46,139.95,139.85,6.73758414]
[1767749222863,6.4353,139.93,139.85,6.73758414]
[1767749223471,6.4358,139.92,139.85,6.73758414]
[1767749223867,84.46,139.95,139.86,0.29898414]
[1767749224658,6.4354,139.93,139.86,0.29898414]
[1767749226066,2.54920335,139.93,139.85,8.90127885]
[1767749226267,2.54920335,139.93,139.83,15.63976299]
[1767749226471,84.48,139.92,139.83,15.63976299]
[1767749227576,6.4367,139.9,139.83,15.63976299]
[1767749227773,184.5967,139.92,139.82,8.90127885]
[1767749228378,6.4376,139.88,139.82,8.90127885]
[1767749230878,6.4376,139.88,139.8,9.20026299]
[1767749231880,100.1337,139.89,139.79,8.90127885]
[1767749232075,100.1337,139.89,139.78,15.34317885]
[1767749232280,84.48,139.88,139.78,15.64216299]
[1767749232773,6.4386,139.86,139.78,15.64216299]
[1767749235582,6.4386,139.86,139.79,0.29898414]
[1767749235882,84.48,139.88,139.8,0.29898414]
[1767749236387,6.4386,139.86,139.8,0.29898414]
[1767749238182,6.439,139.85,139.8,0.29898414]
[1767749238379,6.439,139.85,139.77,8.90127885]
[1767749238690,6.4395,139.84,139.77,6.4426]
[1767749239491,6.4395,139.84,139.77,6.74158414]
[1767749239986,2.54920335,139.86,139.76,9.20026299]
[1767749239987,6.44,139.83,139.76,9.20026299]
[1767749240183,6.44,139.83,139.76,0.29898414]
[1767749240384,6.44,139.83,139.76,9.20026299]
[1767749240694,102.75040335,139.8,139.7,0.29898414]
[1767749240893,84.5,139.79,139.7,0.29898414]
[1767749242592,6.4428,139.77,139.7,0.29898414]
[1767749244292,90.942,139.79,139.7,0.29898414]
[1767749244497,84.5,139.79,139.7,0.29898414]
[1767749244996,84.5,139.79,139.71,0.29898414]
[1767749245894,90.9615,139.8,139.72,0.29898414]
[1767749246594,90.9615,139.8,139.73,0.29898414]
[1767749246789,84.52,139.8,139.73,0.29898414]
[1767749248395,6.4402,139.83,139.74,0.29898414]
[1767749248587,84.54,139.85,139.74,0.29898414]
[1767749248893,102.69270335,139.88,139.74,0.29898414]
[1767749249096,84.54,139.87,139.74,0.29898414]
[1767749249595,6.4392,139.85,139.76,6.74198414]
[1767749251495,90.9792,139.85,139.76,6.74198414]
[1767749252593,8.07387378,139.84,139.76,0.29898414]
[1767749253298,143.11095274,139.9,139.76,0.29898414]
[1767749253299,1.63427378,139.89,139.79,1.93319995]
[1767749253496,86.17427378,139.89,139.79,1.93319995]
[1767749254491,84.54,139.89,139.79,0.29892617]
[1767749254688,6.4379,139.88,139.79,6.74042617]
[1767749256301,6.4382,139.87,139.79,6.74042617]
[1767749257099,6.439,139.85,139.79,0.29892617]
[1767749257701,84.52,139.84,139.73,0.29892617]
[1767749258703,90.9598,139.84,139.76,0.29892617]
[1767749259404,90.9598,139.84,139.76,6.74192617]
[1767749261705,90.9598,139.84,139.77,0.29892617]
[1767749261908,6.44,139.83,139.74,0.29892617]
[1767749262106,84.52,139.84,139.74,0.29892617]
[1767749263200,6.4408,139.81,139.74,6.74282617]
[1767749264802,6.4403,139.83,139.75,6.74242617]
[1767749265004,6.4403,139.83,139.76,0.29892617]
[1767749268113,6.4403,139.83,139.76,6.74192617]
[1767749268709,84.52,139.84,139.76,6.74192617]
[1767749268914,84.52,139.84,139.77,6.74142617]
[1767749269114,84.52,139.84,139.77,0.29892617]
[1767749269304,90.9784,139.87,139.77,0.29892617]
[1767749269511,84.54,139.87,139.78,6.4421]
[1767749270315,6.4385,139.86,139.78,6.4421]
[1767749274616,8.07222642,139.86,139.79,6.4417]
[1767749274828,1.63372642,139.86,139.79,6.4417]
[1767749275025,1.63372642,139.86,139.79,6.74062617]
[1767749275222,1.63372642,139.86,139.79,0.29892617]
[1767749277225,8.07222642,139.86,139.79,0.29892617]
[1767749278430,6.4385,139.86,139.79,0.29892617]
[1767749281529,1.63372642,139.85,139.76,6.7706215]
[1767749281826,1.63372642,139.85,139.76,0.3279215]
[1767749282823,1.63372642,139.81,139.73,0.3279215]
[1767749283419,8.07462642,139.81,139.73,6.7723215]
[1767749285630,8.07462642,139.81,139.74,0.3279215]
[1767749286425,6.4413,139.8,139.74,0.3279215]
[1767749288432,1.63372642,139.81,139.74,0.3279215]
[1767749288632,6.4407,139.82,139.74,0.3279215]
[1767749289527,84.52,139.83,139.75,0.3279215]
[1767749290120,6.4398,139.84,139.75,0.3279215]
[1767749290524,6.4398,139.84,139.76,6.443]
[1767749292331,1.63372642,139.83,139.76,6.443]
[1767749294237,1.63372642,139.83,139.77,6.4426]
[1767749295438,1.63372642,139.83,139.75,6.7712215]
[1767749296337,1.63372642,139.83,139.76,0.3279215]
[1767749297042,1.63372642,139.83,139.76,6.7710215]
[1767749297842,6.4398,139.84,139.76,6.7710215]
[1767749298043,1.63372642,139.83,139.76,6.7710215]
[1767749300245,1.63372642,139.83,139.76,0.3279215]
[1767749301342,8.07362642,139.83,139.76,0.3279215]
[1767749305150,6.4399,139.83,139.76,0.3279215]
[1767749305339,1.63372642,139.88,139.77,0.3279215]
[1767749305542,86.17372642,139.88,139.77,0.3279215]
[1767749306246,84.54,139.88,139.79,0.3279215]
[1767749306955,1.63372642,139.87,139.79,0.3279215]
[1767749307953,1.63372642,139.85,139.76,0.3279215]
[1767749309744,6.4397,139.84,139.76,6.7707215]
[1767749312756,1.63372642,139.83,139.76,0.3279215]
[1767749313058,1.63372642,139.83,139.74,6.75738497]
[1767749313357,1.63372642,139.81,139.72,6.75858497]
[1767749313865,1.63372642,139.79,139.72,6.75858497]
[1767749314447,87.09535335,139.81,139.72,6.75858497]
[1767749314655,6.4419,139.79,139.72,6.75858497]
[1767749315255,2.55535335,139.78,139.7,0.31368497]
[1767749316056,6.4427,139.77,139.68,13.27288075]
[1767749316259,6.4427,139.77,139.68,0.31368497]
[1767749317060,6.4427,139.77,139.68,6.76038497]
[1767749319368,6.4432,139.76,139.68,6.76038497]
[1767749322969,187.33315335,139.78,139.68,0.31368497]
[1767749323670,187.33315335,139.78,139.65,0.31368497]
[1767749324058,6.4441,139.74,139.66,6.76128497]
[1767749325771,6.4441,139.74,139.67,0.31368497]
[1767749328474,6.4435,139.76,139.68,0.31368497]
[1767749329664,6.4435,139.76,139.68,6.76028497]
[1767749330064,6.4435,139.76,139.69,0.31368497]
[1767749333566,6.4435,139.76,139.69,6.75998497]
[1767749333774,6.4435,139.76,139.69,0.31368497]
[1767749337879,91.0228,139.77,139.69,0.31368497]
[1767749339678,91.0228,139.77,139.69,6.75998497]
[1767749340386,91.0228,139.77,139.7,0.30862823]
[1767749340583,91.0228,139.77,139.7,6.75442823]
[1767749341086,84.58,139.82,139.71,0.30862823]
[1767749341281,84.58,139.82,139.73,6.4445]
[1767749341476,84.58,139.82,139.71,0.30862823]
[1767749341888,102.73445335,139.83,139.71,0.30862823]
[1767749342088,84.58,139.82,139.71,0.30862823]
[1767749342590,6.4417,139.79,139.72,6.4449]
[1767749344389,6.4417,139.79,139.72,6.76785955]
[1767749344790,6.4413,139.8,139.73,6.4445]
[1767749347189,6.4436,139.75,139.68,6.76925955]
[1767749347396,87.13535335,139.77,139.68,0.32295955]
[1767749348307,87.13535335,139.77,139.68,6.76965955]
[1767749348504,87.13535335,139.77,139.68,0.32295955]
[1767749349604,6.444,139.74,139.68,0.32295955]
[1767749350906,6.4436,139.75,139.68,0.32295955]
[1767749351106,6.4436,139.75,139.68,6.76955955]
[1767749351309,87.13535335,139.77,139.69,0.32295955]
[1767749351908,6.4431,139.76,139.69,6.76925955]
[1767749354608,2.55535335,139.8,139.7,0.32295955]
[1767749354809,100.1907,139.82,139.7,0.32295955]
[1767749354810,184.7665,139.82,139.7,0.32295955]
[1767749355007,2.55535335,139.8,139.7,0.32295955]
[1767749356708,6.4422,139.78,139.71,6.4451]
[1767749359416,8.99685335,139.8,139.72,6.76775955]
[1767749360216,6.4415,139.8,139.73,6.76735955]
[1767749362315,6.4415,139.8,139.73,0.32295955]
[1767749366626,6.4417,139.79,139.73,0.32295955]
[1767749367719,6.4427,139.77,139.7,6.4454]
[1767749367924,102.75645335,139.8,139.69,0.32295955]
[1767749368118,84.58,139.79,139.69,0.32295955]
[1767749369620,6.4432,139.76,139.69,6.76925955]
[1767749371817,84.58,139.79,139.71,0.3081951]
[1767749372715,6.4427,139.77,139.71,0.3081951]
[1767749373223,91.0221,139.79,139.71,0.3081951]
[1767749374627,1.63569995,139.78,139.71,0.3081951]
[1767749375228,1.63569995,139.78,139.71,6.7535951]
[1767749375827,8.07789995,139.78,139.71,6.7535951]
[1767749378531,1.63569995,139.76,139.69,20.02697585]
[1767749378729,84.58,139.79,139.69,6.4459]
[1767749378730,1.63569995,139.74,139.69,6.4459]
[1767749382826,1.63569995,139.74,139.68,6.4468]
[1767749383032,1.63569995,139.74,139.68,6.7549951]
[1767749383222,1.63569995,139.74,139.68,0.3081951]
[1767749386031,1.63569995,139.74,139.66,13.58107585]
[1767749386335,1.63569995,139.72,139.65,0.3081951]
[1767749387436,86.21569995,139.74,139.65,0.3081951]
[1767749387627,86.21569995,139.74,139.66,0.3081951]
[1767749388926,6.4449,139.73,139.66,0.3081951]
[1767749392038,6.4449,139.73,139.66,6.7558951]
[1767749392836,6.4449,139.73,139.66,0.3081951]
[1767749395143,6.445,139.72,139.66,0.3081951]
[1767749395937,84.58,139.74,139.67,0.3081951]
[1767749396325,84.6,139.76,139.68,0.3081951]
[1767749397541,6.4442,139.74,139.68,0.3081951]
[1767749399936,6.4437,139.75,139.69,0.3081951]
[1767749400144,1.63569995,139.78,139.7,0.3081951]
[1767749400330,84.6,139.79,139.7,0.3081951]
[1767749400531,1.63569995,139.8,139.7,0.3081951]
[1767749400731,84.6,139.79,139.7,0.3081951]
[1767749401131,6.4431,139.76,139.7,0.3081951]
[1767749401833,84.6,139.79,139.7,0.3081951]
[1767749402735,6.4422,139.78,139.71,0.31465935]
[1767749402942,6.4422,139.78,139.69,0.31465935]
[1767749402943,1.63569995,139.78,139.69,0.31465935]
[1767749403245,1.63569995,139.78,139.65,13.5875401]
[1767749403246,1.63569995,139.74,139.65,13.5875401]
[1767749403437,86.21569995,139.74,139.65,0.31465935]
[1767749404142,6.445,139.72,139.65,6.76275935]
[1767749404743,6.445,139.72,139.66,9.23332944]
[1767749405137,91.0245,139.74,139.67,9.23332944]
[1767749405643,6.4445,139.74,139.67,9.23332944]
[1767749406636,6.4445,139.73,139.67,9.23332944]
[1767749408147,6.445,139.72,139.67,9.23332944]
[1767749408442,6.445,139.72,139.66,8.91867009]
[1767749409241,8.07999995,139.74,139.66,8.91867009]
[1767749409744,184.8103,139.76,139.66,8.91867009]
[1767749409745,8.08069995,139.72,139.66,8.91867009]
[1767749410446,6.4455,139.71,139.66,8.91867009]
[1767749410645,1.63569995,139.7,139.65,8.91867009]
[1767749410846,1.63569995,139.7,139.63,23.4491636]